[Event "Titled Tuesday Blitz October 31 Early 2023"]
[White "Skiadopoulos, Nikolaos"]
[Black "Goh, Zi Han"]
[WhiteFideId "4200772"]
[BlackFideId "5819156"]
[WhiteElo "1793"]
[BlackElo "2256"]
[Result "0-1"]
[Round "7"]
[TimeControl "180+1"]
[Date "2023.10.31"]
[WhiteClock "0:00:00"]
[BlackClock "0:00:20"]
[Board "156"]

1. e4 {[%clk 0:03:00]}  c5 {[%clk 0:03:00]} 2. d4 {[%clk 0:02:57]}  cxd4 {[%clk 0:02:59]} 3. c3 {[%clk 0:02:57]}  d3 {[%clk 0:02:59]} 4. Bxd3 {[%clk 0:02:56]}  Nc6 {[%clk 0:02:58]} 5. Nf3 {[%clk 0:02:55]}  d6 {[%clk 0:02:58]} 6. h3 {[%clk 0:02:54]}  Nf6 {[%clk 0:02:58]} 7. Be3 {[%clk 0:02:52]}  e6 {[%clk 0:02:51]} 8. Nbd2 {[%clk 0:02:51]}  Be7 {[%clk 0:02:52]} 9. O-O {[%clk 0:02:51]}  O-O {[%clk 0:02:51]} 10. Re1 {[%clk 0:02:48]}  Bd7 {[%clk 0:02:49]} 11. Nf1 {[%clk 0:02:48]}  Ne5 {[%clk 0:02:44]} 12. Nxe5 {[%clk 0:02:41]}  dxe5 {[%clk 0:02:43]} 13. Qe2 {[%clk 0:02:41]}  Bc6 {[%clk 0:02:40]} 14. Ng3 {[%clk 0:02:38]}  Qc7 {[%clk 0:02:36]} 15. Nh5 {[%clk 0:02:10]}  Rfd8 {[%clk 0:02:23]} 16. Nxf6+ {[%clk 0:02:09]}  Bxf6 {[%clk 0:02:23]} 17. Red1 {[%clk 0:02:04]}  Rd7 {[%clk 0:02:16]} 18. Bc2 {[%clk 0:02:04]}  Rad8 {[%clk 0:02:15]} 19. Rxd7 {[%clk 0:02:03]}  Rxd7 {[%clk 0:02:14]} 20. Rd1 {[%clk 0:02:02]}  a6 {[%clk 0:02:00]} 21. Rd2 {[%clk 0:01:54]}  Qd8 {[%clk 0:01:43]} 22. Qd1 {[%clk 0:01:53]}  Rxd2 {[%clk 0:01:42]} 23. Qxd2 {[%clk 0:01:52]}  Qxd2 {[%clk 0:01:38]} 24. Bxd2 {[%clk 0:01:52]}  Kf8 {[%clk 0:01:38]} 25. c4 {[%clk 0:01:46]}  Ke7 {[%clk 0:01:37]} 26. b4 {[%clk 0:01:46]}  Kd8 {[%clk 0:01:25]} 27. a4 {[%clk 0:01:44]}  Be7 {[%clk 0:01:22]} 28. b5 {[%clk 0:01:37]}  Be8 {[%clk 0:01:20]} 29. Kf1 {[%clk 0:01:29]}  Kc7 {[%clk 0:01:19]} 30. Ke2 {[%clk 0:01:27]}  Kb6 {[%clk 0:01:17]} 31. Kd3 {[%clk 0:01:14]}  Bc5 {[%clk 0:01:06]} 32. a5+ {[%clk 0:01:06]}  Kc7 {[%clk 0:01:06]} 33. Ba4 {[%clk 0:01:02]}  Bxf2 {[%clk 0:00:55]} 34. Bc3 {[%clk 0:00:54]}  f6 {[%clk 0:00:47]} 35. b6+ {[%clk 0:00:42]}  Kd8 {[%clk 0:00:47]} 36. Bxe8 {[%clk 0:00:41]}  Kxe8 {[%clk 0:00:48]} 37. Bb4 {[%clk 0:00:40]}  Kd7 {[%clk 0:00:35]} 38. c5 {[%clk 0:00:38]}  Kc6 {[%clk 0:00:34]} 39. Kc4 {[%clk 0:00:38]}  f5 {[%clk 0:00:32]} 40. exf5 {[%clk 0:00:33]}  exf5 {[%clk 0:00:33]} 41. Bc3 {[%clk 0:00:33]}  e4 {[%clk 0:00:33]} 42. Bxg7 {[%clk 0:00:32]}  Bxc5 {[%clk 0:00:33]} 43. Bh6 {[%clk 0:00:24]}  Bf2 {[%clk 0:00:33]} 44. Bf4 {[%clk 0:00:21]}  Be1 {[%clk 0:00:33]} 45. g4 {[%clk 0:00:13]}  fxg4 {[%clk 0:00:32]} 46. hxg4 {[%clk 0:00:13]}  Bxa5 {[%clk 0:00:32]} 47. Kd4 {[%clk 0:00:13]}  Bxb6+ {[%clk 0:00:30]} 48. Kxe4 {[%clk 0:00:13]}  Bd8 {[%clk 0:00:27]} 49. Kf5 {[%clk 0:00:12]}  b5 {[%clk 0:00:26]} 50. Ke6 {[%clk 0:00:11]}  b4 {[%clk 0:00:21]} 51. Kf7 {[%clk 0:00:10]}  b3 {[%clk 0:00:21]} 52. Bc1 {[%clk 0:00:09]}  h6 {[%clk 0:00:20]} 53. Kg6 {[%clk 0:00:08]}  Bg5 {[%clk 0:00:21]} 54. Bb2 {[%clk 0:00:00]}  Kb5 {[%clk 0:00:20]} 0-1


[Site "https://www.chess.com"]

[Event "Titled Tuesday Blitz October 31 Early 2023"]
[White "campochess"]
[Black "Nanu, Costica-Ciprian"]
[BlackFideId "1204580"]
[WhiteElo "2179"]
[BlackElo "2578"]
[Result "0-1"]
[Round "7"]
[TimeControl "180+1"]
[Date "2023.10.31"]
[WhiteClock "0:01:02"]
[BlackClock "0:01:02"]
[Board "159"]

1. e4 {[%clk 0:03:00]}  c5 {[%clk 0:02:56]} 2. Nc3 {[%clk 0:02:59]}  Nc6 {[%clk 0:02:55]} 3. g3 {[%clk 0:02:59]}  g6 {[%clk 0:02:54]} 4. Bg2 {[%clk 0:02:59]}  Bg7 {[%clk 0:02:55]} 5. Nf3 {[%clk 0:02:57]}  e6 {[%clk 0:02:54]} 6. d3 {[%clk 0:02:56]}  Nge7 {[%clk 0:02:54]} 7. O-O {[%clk 0:02:55]}  O-O {[%clk 0:02:53]} 8. Re1 {[%clk 0:02:54]}  Rb8 {[%clk 0:02:50]} 9. a3 {[%clk 0:02:51]}  b5 {[%clk 0:02:49]} 10. Rb1 {[%clk 0:02:39]}  d6 {[%clk 0:02:47]} 11. Bd2 {[%clk 0:02:38]}  h6 {[%clk 0:02:42]} 12. Ne2 {[%clk 0:02:36]}  a5 {[%clk 0:02:35]} 13. b4 {[%clk 0:02:27]}  axb4 {[%clk 0:02:32]} 14. axb4 {[%clk 0:02:24]}  cxb4 {[%clk 0:02:33]} 15. Bxb4 {[%clk 0:02:19]}  Nxb4 {[%clk 0:02:34]} 16. Rxb4 {[%clk 0:02:19]}  Nc6 {[%clk 0:02:35]} 17. Rb1 {[%clk 0:02:18]}  b4 {[%clk 0:02:31]} 18. d4 {[%clk 0:02:16]}  d5 {[%clk 0:02:31]} 19. e5 {[%clk 0:02:15]}  Ba6 {[%clk 0:02:30]} 20. Nc1 {[%clk 0:02:13]}  Qc7 {[%clk 0:02:16]} 21. Nb3 {[%clk 0:02:10]}  Rfc8 {[%clk 0:02:16]} 22. Nc5 {[%clk 0:01:59]}  Bc4 {[%clk 0:02:15]} 23. Nd3 {[%clk 0:01:59]}  Qe7 {[%clk 0:02:02]} 24. Qd2 {[%clk 0:01:56]}  Rc7 {[%clk 0:01:56]} 25. Rb2 {[%clk 0:01:49]}  Rcb7 {[%clk 0:01:51]} 26. Reb1 {[%clk 0:01:48]}  Bxd3 {[%clk 0:01:33]} 27. Qxd3 {[%clk 0:01:44]}  Na5 {[%clk 0:01:32]} 28. c3 {[%clk 0:01:34]}  b3 {[%clk 0:01:21]} 29. Nd2 {[%clk 0:01:30]}  Qd7 {[%clk 0:01:20]} 30. Bf1 {[%clk 0:01:22]}  Bf8 {[%clk 0:01:18]} 31. c4 {[%clk 0:01:19]}  Ba3 {[%clk 0:01:11]} 32. c5 {[%clk 0:01:19]}  Bxb2 {[%clk 0:01:11]} 33. Rxb2 {[%clk 0:01:19]}  Qc6 {[%clk 0:01:09]} 34. h4 {[%clk 0:01:18]}  h5 {[%clk 0:01:08]} 35. Be2 {[%clk 0:01:16]}  Rb4 {[%clk 0:01:08]} 36. g4 {[%clk 0:01:15]}  hxg4 {[%clk 0:01:06]} 37. Bxg4 {[%clk 0:01:15]}  Qa4 {[%clk 0:01:03]} 38. h5 {[%clk 0:01:11]}  Rxd4 {[%clk 0:01:03]} 39. Qe2 {[%clk 0:01:09]}  Rxg4+ {[%clk 0:01:03]} 40. Qxg4 {[%clk 0:01:02]}  Qxg4+ {[%clk 0:01:02]} 0-1


[Site "https://www.chess.com"]

[Event "Titled Tuesday Blitz October 31 Early 2023"]
[White "Floresvillar Gonzalez, Luis Migu"]
[Black "Terletsky, Oleg"]
[WhiteFideId "5100542"]
[BlackFideId "14116774"]
[WhiteElo "2165"]
[BlackElo "2483"]
[Result "0-1"]
[Round "7"]
[TimeControl "180+1"]
[Date "2023.10.31"]
[WhiteClock "0:00:00"]
[BlackClock "0:00:30"]
[Board "160"]

1. d4 {[%clk 0:02:56]}  Nf6 {[%clk 0:02:58]} 2. c3 {[%clk 0:02:55]}  g6 {[%clk 0:02:58]} 3. Bg5 {[%clk 0:02:55]}  Bg7 {[%clk 0:02:58]} 4. Nd2 {[%clk 0:02:55]}  d5 {[%clk 0:02:58]} 5. Ngf3 {[%clk 0:02:54]}  O-O {[%clk 0:02:57]} 6. Ne5 {[%clk 0:02:51]}  c5 {[%clk 0:02:47]} 7. e3 {[%clk 0:02:50]}  Nc6 {[%clk 0:02:41]} 8. f4 {[%clk 0:02:49]}  cxd4 {[%clk 0:02:29]} 9. exd4 {[%clk 0:02:49]}  Nd7 {[%clk 0:02:26]} 10. Bh4 {[%clk 0:02:42]}  f6 {[%clk 0:02:15]} 11. Nxd7 {[%clk 0:02:27]}  Bxd7 {[%clk 0:02:14]} 12. Be2 {[%clk 0:02:20]}  Qb6 {[%clk 0:02:10]} 13. b4 {[%clk 0:02:16]}  e5 {[%clk 0:02:08]} 14. dxe5 {[%clk 0:01:57]}  fxe5 {[%clk 0:02:07]} 15. Bf2 {[%clk 0:01:57]}  Qc7 {[%clk 0:01:50]} 16. b5 {[%clk 0:01:52]}  Na5 {[%clk 0:01:45]} 17. O-O {[%clk 0:01:33]}  exf4 {[%clk 0:01:09]} 18. Rc1 {[%clk 0:01:20]}  Rad8 {[%clk 0:01:05]} 19. Nb3 {[%clk 0:01:17]}  Bf5 {[%clk 0:00:55]} 20. Bd4 {[%clk 0:01:01]}  Nc4 {[%clk 0:00:53]} 21. Bxg7 {[%clk 0:00:51]}  Qxg7 {[%clk 0:00:52]} 22. Qd4 {[%clk 0:00:43]}  Qxd4+ {[%clk 0:00:41]} 23. Nxd4 {[%clk 0:00:42]}  g5 {[%clk 0:00:39]} 24. Nxf5 {[%clk 0:00:36]}  Rxf5 {[%clk 0:00:40]} 25. Bg4 {[%clk 0:00:27]}  Re5 {[%clk 0:00:38]} 26. Rfe1 {[%clk 0:00:23]}  Rde8 {[%clk 0:00:36]} 27. Rxe5 {[%clk 0:00:19]}  Rxe5 {[%clk 0:00:37]} 28. Bf3 {[%clk 0:00:18]}  Kf7 {[%clk 0:00:36]} 29. Rd1 {[%clk 0:00:18]}  Ke6 {[%clk 0:00:36]} 30. a4 {[%clk 0:00:17]}  b6 {[%clk 0:00:35]} 31. h4 {[%clk 0:00:15]}  h6 {[%clk 0:00:35]} 32. hxg5 {[%clk 0:00:15]}  hxg5 {[%clk 0:00:36]} 33. Kf2 {[%clk 0:00:15]}  Ne3 {[%clk 0:00:36]} 34. Rd4 {[%clk 0:00:13]}  Kd6 {[%clk 0:00:34]} 35. Be2 {[%clk 0:00:09]}  Kc5 {[%clk 0:00:33]} 36. Rb4 {[%clk 0:00:07]}  Nf5 {[%clk 0:00:29]} 37. Bg4 {[%clk 0:00:03]}  Ng3 {[%clk 0:00:29]} 38. Bf3 {[%clk 0:00:02]}  Ne4+ {[%clk 0:00:29]} 39. Bxe4 {[%clk 0:00:00]}  dxe4 {[%clk 0:00:30]} 0-1


[Site "https://www.chess.com"]

[Event "Titled Tuesday Blitz October 31 Early 2023"]
[White "Garrido, Denis"]
[Black "dontcatchmeifyoucant"]
[WhiteFideId "601217"]
[WhiteElo "2310"]
[BlackElo "2075"]
[Result "0-1"]
[Round "7"]
[TimeControl "180+1"]
[Date "2023.10.31"]
[WhiteClock "0:00:00"]
[BlackClock "0:00:03"]
[Board "163"]

1. c4 {[%clk 0:02:56]}  Nf6 {[%clk 0:02:50]} 2. Nc3 {[%clk 0:02:52]}  g6 {[%clk 0:02:42]} 3. d4 {[%clk 0:02:51]}  d5 {[%clk 0:02:35]} 4. cxd5 {[%clk 0:02:44]}  Nxd5 {[%clk 0:02:36]} 5. g3 {[%clk 0:02:44]}  Bg7 {[%clk 0:02:34]} 6. Bg2 {[%clk 0:02:45]}  Nxc3 {[%clk 0:02:28]} 7. bxc3 {[%clk 0:02:44]}  c5 {[%clk 0:02:16]} 8. e3 {[%clk 0:02:24]}  Qa5 {[%clk 0:02:01]} 9. Bd2 {[%clk 0:02:07]}  Qa6 {[%clk 0:01:56]} 10. Ne2 {[%clk 0:01:55]}  Bg4 {[%clk 0:01:54]} 11. f3 {[%clk 0:01:55]}  Bd7 {[%clk 0:01:49]} 12. O-O {[%clk 0:01:52]}  Bb5 {[%clk 0:01:35]} 13. Rf2 {[%clk 0:01:38]}  Nc6 {[%clk 0:01:02]} 14. f4 {[%clk 0:01:31]}  cxd4 {[%clk 0:00:54]} 15. cxd4 {[%clk 0:01:23]}  O-O {[%clk 0:00:54]} 16. f5 {[%clk 0:01:22]}  Na5 {[%clk 0:00:38]} 17. Nc3 {[%clk 0:01:14]}  Bd3 {[%clk 0:00:29]} 18. Nd5 {[%clk 0:01:07]}  Rad8 {[%clk 0:00:05]} 19. Nxe7+ {[%clk 0:01:04]}  Kh8 {[%clk 0:00:04]} 20. Bxa5 {[%clk 0:00:57]}  Qxa5 {[%clk 0:00:04]} 21. Qxd3 {[%clk 0:00:57]}  Bf6 {[%clk 0:00:03]} 22. Nd5 {[%clk 0:00:54]}  Rxd5 {[%clk 0:00:03]} 23. Bxd5 {[%clk 0:00:54]}  Qxd5 {[%clk 0:00:04]} 24. fxg6 {[%clk 0:00:52]}  fxg6 {[%clk 0:00:05]} 25. Raf1 {[%clk 0:00:51]}  Kg7 {[%clk 0:00:04]} 26. Rf4 {[%clk 0:00:42]}  Be7 {[%clk 0:00:02]} 27. Qb3 {[%clk 0:00:35]}  Qxb3 {[%clk 0:00:01]} 28. axb3 {[%clk 0:00:35]}  Bf6 {[%clk 0:00:01]} 29. Kf2 {[%clk 0:00:32]}  g5 {[%clk 0:00:01]} 30. Rf5 {[%clk 0:00:31]}  Kg6 {[%clk 0:00:01]} 31. Rc5 {[%clk 0:00:31]}  Bxd4+ {[%clk 0:00:01]} 32. Ke2 {[%clk 0:00:28]}  Rxf1 {[%clk 0:00:01]} 33. exd4 {[%clk 0:00:28]}  Rh1 {[%clk 0:00:01]} 34. Rc7 {[%clk 0:00:26]}  Rxh2+ {[%clk 0:00:02]} 35. Kf3 {[%clk 0:00:24]}  Rb2 {[%clk 0:00:03]} 36. Rxb7 {[%clk 0:00:24]}  a5 {[%clk 0:00:03]} 37. Rb5 {[%clk 0:00:21]}  Ra2 {[%clk 0:00:02]} 38. Ke4 {[%clk 0:00:20]}  Ra3 {[%clk 0:00:02]} 39. g4 {[%clk 0:00:19]}  a4 {[%clk 0:00:02]} 40. Rb6+ {[%clk 0:00:20]}  Kg7 {[%clk 0:00:02]} 41. b4 {[%clk 0:00:19]}  Rb3 {[%clk 0:00:02]} 42. d5 {[%clk 0:00:18]}  a3 {[%clk 0:00:02]} 43. Kf5 {[%clk 0:00:18]}  a2 {[%clk 0:00:03]} 44. Ra6 {[%clk 0:00:18]}  Rxb4 {[%clk 0:00:03]} 45. Rxa2 {[%clk 0:00:18]}  Rb5 {[%clk 0:00:02]} 46. Ke6 {[%clk 0:00:13]}  Rb4 {[%clk 0:00:02]} 47. Rg2 {[%clk 0:00:04]}  Re4+ {[%clk 0:00:02]} 48. Kf5 {[%clk 0:00:04]}  Rd4 {[%clk 0:00:03]} 49. Ke5 {[%clk 0:00:04]}  Rd1 {[%clk 0:00:03]} 50. d6 {[%clk 0:00:04]}  Kf7 {[%clk 0:00:02]} 51. Rf2+ {[%clk 0:00:00]}  Ke8 {[%clk 0:00:03]} 0-1


[Site "https://www.chess.com"]

[Event "Titled Tuesday Blitz October 31 Early 2023"]
[White "Vila Dupla, Aurelio"]
[Black "Vargas, Mauricio"]
[WhiteFideId "2203383"]
[BlackFideId "4404572"]
[WhiteElo "2239"]
[BlackElo "1863"]
[Result "1-0"]
[Round "7"]
[TimeControl "180+1"]
[Date "2023.10.31"]
[WhiteClock "0:02:07"]
[BlackClock "0:00:00"]
[Board "167"]

1. Nf3 {[%clk 0:03:00]}  c6 {[%clk 0:00:41]} 2. d4 {[%clk 0:02:56]}  d6 {[%clk 0:00:39]} 3. c4 {[%clk 0:02:56]}  g6 {[%clk 0:00:39]} 4. g3 {[%clk 0:02:56]}  Bg7 {[%clk 0:00:40]} 5. Bg2 {[%clk 0:02:56]}  Nf6 {[%clk 0:00:41]} 6. O-O {[%clk 0:02:55]}  O-O {[%clk 0:00:41]} 7. Nc3 {[%clk 0:02:55]}  Qe8 {[%clk 0:00:42]} 8. d5 {[%clk 0:02:48]}  Nbd7 {[%clk 0:00:43]} 9. Rb1 {[%clk 0:02:44]}  c5 {[%clk 0:00:42]} 10. b3 {[%clk 0:02:43]}  a6 {[%clk 0:00:40]} 11. Bb2 {[%clk 0:02:43]}  e5 {[%clk 0:00:34]} 12. dxe6 {[%clk 0:02:42]}  fxe6 {[%clk 0:00:24]} 13. Qxd6 {[%clk 0:02:38]}  Ng4 {[%clk 0:00:06]} 14. Qd2 {[%clk 0:02:29]}  Bh6 {[%clk 0:00:02]} 15. e3 {[%clk 0:02:23]}  g5 {[%clk 0:00:01]} 16. Ne4 {[%clk 0:02:18]}  Qh5 {[%clk 0:00:00]} 17. h3 {[%clk 0:02:07]} 1-0


[Site "https://www.chess.com"]

[Event "Titled Tuesday Blitz October 31 Early 2023"]
[White "Nakamura, Hikaru"]
[Black "Le, Quang Liem"]
[WhiteFideId "2016192"]
[BlackFideId "12401137"]
[WhiteElo "3230"]
[BlackElo "3029"]
[Result "1/2-1/2"]
[Round "8"]
[TimeControl "180+1"]
[Date "2023.10.31"]
[WhiteClock "0:00:13"]
[BlackClock "0:00:13"]
[Board "2"]

1. e4 {[%clk 0:03:00]}  c5 {[%clk 0:02:58]} 2. d4 {[%clk 0:02:59]}  cxd4 {[%clk 0:02:58]} 3. c3 {[%clk 0:03:00]}  dxc3 {[%clk 0:02:58]} 4. Nxc3 {[%clk 0:03:01]}  Nc6 {[%clk 0:02:57]} 5. Nf3 {[%clk 0:03:00]}  d6 {[%clk 0:02:53]} 6. Bc4 {[%clk 0:02:59]}  a6 {[%clk 0:02:53]} 7. O-O {[%clk 0:02:54]}  Nf6 {[%clk 0:02:52]} 8. Bf4 {[%clk 0:02:53]}  Bg4 {[%clk 0:02:31]} 9. Qb3 {[%clk 0:02:37]}  e6 {[%clk 0:02:30]} 10. Qxb7 {[%clk 0:02:37]}  Na5 {[%clk 0:02:28]} 11. Qb4 {[%clk 0:02:37]}  Bxf3 {[%clk 0:02:21]} 12. Qa4+ {[%clk 0:02:25]}  Nd7 {[%clk 0:02:19]} 13. gxf3 {[%clk 0:02:26]}  Nxc4 {[%clk 0:02:05]} 14. Qxc4 {[%clk 0:02:27]}  Be7 {[%clk 0:02:05]} 15. Rfd1 {[%clk 0:02:25]}  O-O {[%clk 0:02:04]} 16. Qc6 {[%clk 0:02:14]}  Ra7 {[%clk 0:01:02]} 17. Bxd6 {[%clk 0:02:11]}  Bxd6 {[%clk 0:01:03]} 18. Qxd6 {[%clk 0:02:11]}  Qf6 {[%clk 0:01:03]} 19. f4 {[%clk 0:02:01]}  Qg6+ {[%clk 0:01:01]} 20. Kh1 {[%clk 0:02:01]}  Nf6 {[%clk 0:01:02]} 21. f3 {[%clk 0:01:52]}  Qh5 {[%clk 0:00:52]} 22. Qd3 {[%clk 0:01:49]}  Qh4 {[%clk 0:00:44]} 23. Qe3 {[%clk 0:01:42]}  Rb7 {[%clk 0:00:44]} 24. b3 {[%clk 0:01:40]}  h6 {[%clk 0:00:37]} 25. Ne2 {[%clk 0:01:37]}  Rc8 {[%clk 0:00:34]} 26. Rd2 {[%clk 0:00:57]}  Rbc7 {[%clk 0:00:31]} 27. Rg1 {[%clk 0:00:57]}  Kh7 {[%clk 0:00:26]} 28. Ng3 {[%clk 0:00:42]}  Rc3 {[%clk 0:00:24]} 29. Rd3 {[%clk 0:00:36]}  Rc2 {[%clk 0:00:25]} 30. Rd2 {[%clk 0:00:23]}  R8c3 {[%clk 0:00:24]} 31. Qe2 {[%clk 0:00:23]}  Rxd2 {[%clk 0:00:24]} 32. Qxd2 {[%clk 0:00:24]}  Rxf3 {[%clk 0:00:25]} 33. Qg2 {[%clk 0:00:21]}  Qg4 {[%clk 0:00:13]} 34. Ne2 {[%clk 0:00:18]}  Qxg2+ {[%clk 0:00:12]} 35. Kxg2 {[%clk 0:00:19]}  Re3 {[%clk 0:00:12]} 36. Kf2 {[%clk 0:00:09]}  Rxe4 {[%clk 0:00:12]} 37. Kf3 {[%clk 0:00:07]}  Rb4 {[%clk 0:00:11]} 38. Rc1 {[%clk 0:00:08]}  Nd5 {[%clk 0:00:12]} 39. Rc5 {[%clk 0:00:09]}  f5 {[%clk 0:00:09]} 40. Ra5 {[%clk 0:00:08]}  Rb6 {[%clk 0:00:09]} 41. h4 {[%clk 0:00:09]}  Kg6 {[%clk 0:00:08]} 42. Nd4 {[%clk 0:00:09]}  Kf6 {[%clk 0:00:09]} 43. a3 {[%clk 0:00:09]}  Rd6 {[%clk 0:00:09]} 44. Ne2 {[%clk 0:00:08]}  Ne7 {[%clk 0:00:08]} 45. b4 {[%clk 0:00:08]}  g5 {[%clk 0:00:06]} 46. hxg5+ {[%clk 0:00:08]}  hxg5 {[%clk 0:00:07]} 47. fxg5+ {[%clk 0:00:09]}  Kxg5 {[%clk 0:00:08]} 48. Nf4 {[%clk 0:00:08]}  Kf6 {[%clk 0:00:08]} 49. Ke3 {[%clk 0:00:08]}  e5 {[%clk 0:00:09]} 50. Nh5+ {[%clk 0:00:08]}  Kg5 {[%clk 0:00:06]} 51. Rxe5 {[%clk 0:00:09]}  Nd5+ {[%clk 0:00:07]} 52. Kf3 {[%clk 0:00:09]}  Kxh5 {[%clk 0:00:06]} 53. Rxf5+ {[%clk 0:00:09]}  Kg6 {[%clk 0:00:07]} 54. Re5 {[%clk 0:00:09]}  Kf6 {[%clk 0:00:05]} 55. Rh5 {[%clk 0:00:10]}  Ne7 {[%clk 0:00:05]} 56. b5 {[%clk 0:00:09]}  a5 {[%clk 0:00:03]} 57. b6 {[%clk 0:00:09]}  Rxb6 {[%clk 0:00:03]} 58. Rxa5 {[%clk 0:00:09]}  Ke6 {[%clk 0:00:02]} 59. Ke4 {[%clk 0:00:09]}  Nc8 {[%clk 0:00:03]} 60. Rh5 {[%clk 0:00:09]}  Nd6+ {[%clk 0:00:03]} 61. Kd4 {[%clk 0:00:10]}  Rb1 {[%clk 0:00:04]} 62. Kd3 {[%clk 0:00:10]}  Kd7 {[%clk 0:00:05]} 63. Kc2 {[%clk 0:00:11]}  Rf1 {[%clk 0:00:05]} 64. Rh3 {[%clk 0:00:10]}  Rf2+ {[%clk 0:00:05]} 65. Kb3 {[%clk 0:00:11]}  Kc6 {[%clk 0:00:05]} 66. a4 {[%clk 0:00:11]}  Nb7 {[%clk 0:00:05]} 67. Rh6+ {[%clk 0:00:11]}  Kc7 {[%clk 0:00:06]} 68. Rh5 {[%clk 0:00:11]}  Kb6 {[%clk 0:00:06]} 69. Rh6+ {[%clk 0:00:11]}  Ka7 {[%clk 0:00:07]} 70. Rh5 {[%clk 0:00:12]}  Rf4 {[%clk 0:00:07]} 71. Rg5 {[%clk 0:00:12]}  Ka6 {[%clk 0:00:07]} 72. Rg6+ {[%clk 0:00:11]}  Ka7 {[%clk 0:00:08]} 73. Rg5 {[%clk 0:00:12]}  Rf6 {[%clk 0:00:08]} 74. Rh5 {[%clk 0:00:12]}  Ka6 {[%clk 0:00:08]} 75. Kb4 {[%clk 0:00:12]}  Rb6+ {[%clk 0:00:08]} 76. Ka3 {[%clk 0:00:11]}  Re6 {[%clk 0:00:08]} 77. Kb4 {[%clk 0:00:11]}  Re4+ {[%clk 0:00:08]} 78. Ka3 {[%clk 0:00:11]}  Rc4 {[%clk 0:00:08]} 79. Rh6+ {[%clk 0:00:11]}  Ka5 {[%clk 0:00:08]} 80. Kb3 {[%clk 0:00:12]}  Rb4+ {[%clk 0:00:08]} 81. Kc3 {[%clk 0:00:13]}  Rxa4 {[%clk 0:00:08]} 82. Rh5+ {[%clk 0:00:13]}  Kb6 {[%clk 0:00:09]} 83. Rh6+ {[%clk 0:00:14]}  Kb5 {[%clk 0:00:09]} 84. Rh8 {[%clk 0:00:14]}  Nc5 {[%clk 0:00:10]} 85. Kc2 {[%clk 0:00:14]}  Ra3 {[%clk 0:00:09]} 86. Rh4 {[%clk 0:00:14]}  Re3 {[%clk 0:00:09]} 87. Kd2 {[%clk 0:00:09]}  Rf3 {[%clk 0:00:09]} 88. Ke2 {[%clk 0:00:09]}  Rc3 {[%clk 0:00:09]} 89. Kd2 {[%clk 0:00:10]}  Ra3 {[%clk 0:00:09]} 90. Ke2 {[%clk 0:00:10]}  Ne6 {[%clk 0:00:08]} 91. Re4 {[%clk 0:00:10]}  Nc7 {[%clk 0:00:08]} 92. Rd4 {[%clk 0:00:08]}  Kc5 {[%clk 0:00:08]} 93. Rh4 {[%clk 0:00:09]}  Nd5 {[%clk 0:00:08]} 94. Kd2 {[%clk 0:00:09]}  Nb6 {[%clk 0:00:08]} 95. Rh5+ {[%clk 0:00:10]}  Kb4 {[%clk 0:00:07]} 96. Rh4+ {[%clk 0:00:10]}  Nc4+ {[%clk 0:00:08]} 97. Ke2 {[%clk 0:00:11]}  Kc5 {[%clk 0:00:09]} 98. Rh5+ {[%clk 0:00:11]}  Kd4 {[%clk 0:00:09]} 99. Rh4+ {[%clk 0:00:12]}  Kd5 {[%clk 0:00:10]} 100. Rh5+ {[%clk 0:00:13]}  Ne5 {[%clk 0:00:10]} 101. Rh4 {[%clk 0:00:14]}  Ra2+ {[%clk 0:00:10]} 102. Ke3 {[%clk 0:00:14]}  Ra3+ {[%clk 0:00:11]} 103. Ke2 {[%clk 0:00:14]}  Ng6 {[%clk 0:00:12]} 104. Rg4 {[%clk 0:00:13]}  Ne7 {[%clk 0:00:11]} 105. Rg5+ {[%clk 0:00:12]}  Ke4 {[%clk 0:00:11]} 106. Rg4+ {[%clk 0:00:13]}  Ke5 {[%clk 0:00:12]} 107. Rh4 {[%clk 0:00:13]}  Nf5 {[%clk 0:00:12]} 108. Rb4 {[%clk 0:00:12]}  Nd4+ {[%clk 0:00:12]} 109. Kf2 {[%clk 0:00:13]}  Ra2+ {[%clk 0:00:13]} 110. Kg3 {[%clk 0:00:13]}  Ke4 {[%clk 0:00:13]} 111. Rb8 {[%clk 0:00:13]}  Ra6 {[%clk 0:00:13]} 112. Re8+ {[%clk 0:00:12]}  Ne6 {[%clk 0:00:13]} 113. Kg4 {[%clk 0:00:12]}  Ke5 {[%clk 0:00:13]} 114. Rb8 {[%clk 0:00:13]}  Ra1 {[%clk 0:00:13]} 115. Rb5+ {[%clk 0:00:12]}  Ke4 {[%clk 0:00:14]} 116. Rb4+ {[%clk 0:00:13]}  Nd4 {[%clk 0:00:14]} 117. Kg5 {[%clk 0:00:13]}  Ke5 {[%clk 0:00:13]} 118. Kg6 {[%clk 0:00:13]}  Rf1 {[%clk 0:00:13]} 119. Rb8 {[%clk 0:00:13]}  Ne6 {[%clk 0:00:12]} 120. Rb5+ {[%clk 0:00:12]}  Kd6 {[%clk 0:00:12]} 121. Ra5 {[%clk 0:00:12]}  Nf4+ {[%clk 0:00:12]} 122. Kg5 {[%clk 0:00:13]}  Nd5 {[%clk 0:00:12]} 123. Kg4 {[%clk 0:00:12]}  Ke5 {[%clk 0:00:12]} 124. Kg3 {[%clk 0:00:12]}  Ke4 {[%clk 0:00:13]} 125. Ra4+ {[%clk 0:00:13]}  Ke5 {[%clk 0:00:13]} 126. Ra5 {[%clk 0:00:13]}  Rd1 {[%clk 0:00:13]} 127. Kf3 {[%clk 0:00:12]}  Rd3+ {[%clk 0:00:13]} 128. Ke2 {[%clk 0:00:13]}  Rh3 {[%clk 0:00:13]} 129. Kf2 {[%clk 0:00:13]}  Kd4 {[%clk 0:00:13]} 130. Ra4+ {[%clk 0:00:13]}  Ke5 {[%clk 0:00:12]} 131. Ra5 {[%clk 0:00:13]}  Rd3 {[%clk 0:00:13]} 1/2-1/2


[Site "https://www.chess.com"]

[Event "Titled Tuesday Blitz October 31 Early 2023"]
[White "mind1mover"]
[Black "Daneshvar, Bardiya"]
[BlackFideId "12576468"]
[WhiteElo "2780"]
[BlackElo "2958"]
[Result "0-1"]
[Round "8"]
[TimeControl "180+1"]
[Date "2023.10.31"]
[WhiteClock "0:00:13"]
[BlackClock "0:01:26"]
[Board "7"]

1. Nf3 {[%clk 0:03:00]}  b6 {[%clk 0:02:59]} 2. g3 {[%clk 0:02:59]}  Bb7 {[%clk 0:03:00]} 3. Bg2 {[%clk 0:03:00]}  g6 {[%clk 0:03:01]} 4. O-O {[%clk 0:02:59]}  Bg7 {[%clk 0:03:02]} 5. e3 {[%clk 0:03:00]}  Nf6 {[%clk 0:03:02]} 6. b3 {[%clk 0:02:59]}  O-O {[%clk 0:02:54]} 7. Bb2 {[%clk 0:02:59]}  c5 {[%clk 0:02:55]} 8. d4 {[%clk 0:02:55]}  cxd4 {[%clk 0:02:55]} 9. exd4 {[%clk 0:02:56]}  e6 {[%clk 0:02:54]} 10. c4 {[%clk 0:02:51]}  d5 {[%clk 0:02:54]} 11. Qe2 {[%clk 0:02:36]}  Nc6 {[%clk 0:02:53]} 12. Rd1 {[%clk 0:02:36]}  Rc8 {[%clk 0:02:53]} 13. Nbd2 {[%clk 0:02:33]}  dxc4 {[%clk 0:02:52]} 14. bxc4 {[%clk 0:02:34]}  Ne7 {[%clk 0:02:52]} 15. Rac1 {[%clk 0:02:11]}  Nf5 {[%clk 0:02:50]} 16. Nb3 {[%clk 0:02:11]}  Rc7 {[%clk 0:02:49]} 17. Ne5 {[%clk 0:01:56]}  Bxg2 {[%clk 0:02:46]} 18. Kxg2 {[%clk 0:01:57]}  Qa8+ {[%clk 0:02:47]} 19. Qf3 {[%clk 0:01:53]}  Qxf3+ {[%clk 0:02:42]} 20. Nxf3 {[%clk 0:01:40]}  Rfc8 {[%clk 0:02:43]} 21. d5 {[%clk 0:01:41]}  exd5 {[%clk 0:02:33]} 22. cxd5 {[%clk 0:01:40]}  Rc2 {[%clk 0:02:31]} 23. Kg1 {[%clk 0:00:46]}  Ne4 {[%clk 0:02:11]} 24. Rxc2 {[%clk 0:00:43]}  Rxc2 {[%clk 0:02:09]} 25. Bxg7 {[%clk 0:00:43]}  Kxg7 {[%clk 0:02:09]} 26. Nfd4 {[%clk 0:00:37]}  Nxd4 {[%clk 0:02:08]} 27. Nxd4 {[%clk 0:00:30]}  Rxa2 {[%clk 0:02:02]} 28. Nb5 {[%clk 0:00:30]}  Nxf2 {[%clk 0:01:54]} 29. Rd4 {[%clk 0:00:22]}  Nh3+ {[%clk 0:01:37]} 30. Kh1 {[%clk 0:00:22]}  Ng5 {[%clk 0:01:28]} 31. Nc7 {[%clk 0:00:21]}  Nf3 {[%clk 0:01:27]} 32. Rd1 {[%clk 0:00:13]}  Rxh2# {[%clk 0:01:26]} 0-1


[Site "https://www.chess.com"]